bitfinex/quotes_SOLUSD_20250712
["timestamp","ask_amount","ask_price","bid_price","bid_amount"]
[1752349384133,0.7,160.43,160.42,31.34]
[1752349395145,0.7,160.43,160.41,26.94]
[1752349396239,0.7,160.43,160.42,31.34]
[1752349399153,0.85903251,160.43,160.42,31.34]
[1752349401227,0.7,160.43,160.42,31.34]
[1752349401649,0.85903251,160.43,160.42,31.34]
[1752349402325,0.7,160.43,160.42,31.34]
[1752349402521,0.85903251,160.43,160.42,31.34]
[1752349406255,0.15903251,160.42,160.41,26.94]
[1752349406438,0.15903251,160.42,160.4,26.88]
[1752349406640,0.15903251,160.41,160.4,26.88]
[1752349406835,0.82903251,160.41,160.4,26.88]
[1752349407442,0.82903251,160.41,160.4,58.22]
[1752349410554,0.15903251,160.41,160.4,58.22]
[1752349410739,0.82903251,160.42,160.4,58.22]
[1752349410936,0.15903251,160.41,160.4,58.22]
[1752349411451,0.82903251,160.42,160.4,58.22]
[1752349411633,0.15903251,160.41,160.4,58.22]
[1752349415356,0.82903251,160.42,160.4,58.22]
[1752349415556,0.15903251,160.41,160.4,58.22]
[1752349418157,0.82903251,160.41,160.4,26.88]
[1752349418362,0.82903251,160.41,160.4,58.22]
[1752349424560,0.82903251,160.41,160.4,58.28]
[1752349424752,0.85903251,160.41,160.4,31.4]
[1752349425064,0.15903251,160.39,160.38,0.06]
[1752349425235,0.15903251,160.38,160.37,26.9]
[1752349426148,0.15903251,160.38,160.37,58.24]
[1752349429661,0.15903251,160.38,160.37,58.94]
[1752349430659,0.15903251,160.4,160.37,58.94]
[1752349430852,0.03,160.41,160.37,58.94]
[1752349430853,0.18903251,160.41,160.38,17.48468397]
[1752349431060,0.18903251,160.41,160.39,31.34]
[1752349431249,0.15903251,160.4,160.39,32.04]
[1752349432161,0.03,160.41,160.39,32.04]
[1752349432363,0.03,160.41,160.4,0.7]
[1752349433159,0.03,160.41,160.4,17.48468397]
[1752349437567,0.03,160.41,160.4,44.38468397]
[1752349456471,0.03,160.41,160.4,133.00812536]
[1752349456672,0.03,160.41,160.4,132.38468397]
[1752349483690,0.03,160.41,160.4,163.70468397]
[1752349487909,0.03,160.41,160.4,182.38468397]
[1752349488297,0.03,160.41,160.4,185.30688381]
[1752349488715,0.03,160.41,160.4,191.82428381]
[1752349489106,0.03,160.41,160.4,201.6652513]
[1752349491808,0.03,160.41,160.4,198.74305146]
[1752349492015,0.03,160.41,160.4,201.6652513]
[1752349493919,0.03,160.41,160.4,160.50428381]
[1752349494121,0.03,160.44,160.42,16.78468397]
[1752349494300,0.03,160.44,160.43,48.70800878]
[1752349494499,0.03,160.44,160.43,49.38800878]
[1752349496216,0.03,160.44,160.43,48.70800878]
[1752349496418,0.74,160.44,160.43,48.70800878]
[1752349496826,0.74,160.44,160.43,16.78468397]
[1752349497023,0.15903251,160.43,160.4,26.9]
[1752349497205,0.71,160.42,160.41,48.08468397]
[1752349502402,0.71,160.42,160.4,26.9]
[1752349502732,0.71,160.42,160.41,48.08468397]
[1752349503330,0.86903251,160.42,160.41,48.08468397]
[1752349504323,0.71,160.42,160.41,48.08468397]
[1752349511649,0.71,160.42,160.41,48.14468397]
[1752349512144,0.74,160.42,160.41,48.14468397]
[1752349514319,0.03,160.42,160.41,48.14468397]
[1752349515947,0.03,160.42,160.41,48.82468397]
[1752349516434,0.03,160.42,160.41,49.4480865]
[1752349517047,0.7,160.42,160.41,48.14468397]
[1752349517250,0.03,160.42,160.41,48.14468397]
[1752349517946,0.03,160.42,160.41,136.11468397]
[1752349518154,0.7,160.42,160.41,136.11468397]
[1752349521151,0.03,160.42,160.41,136.11468397]
[1752349524056,0.7,160.42,160.41,136.11468397]
[1752349524558,0.03,160.42,160.41,136.11468397]
[1752349524933,0.03,160.42,160.41,136.79468397]
[1752349525855,0.03,160.42,160.41,136.11468397]
[1752349526955,0.03,160.42,160.41,136.79468397]
[1752349534266,0.03,160.42,160.41,155.47468397]
[1752349534455,0.03,160.42,160.41,161.55468397]
[1752349535052,0.03,160.42,160.41,164.47688381]
[1752349535251,0.03,160.44,160.41,174.3178513]
[1752349535466,0.03,160.44,160.43,35.46468397]
[1752349535667,0.03,160.44,160.43,66.76468397]
[1752349536176,0.03,160.44,160.43,67.44468397]
[1752349538474,0.03,160.44,160.43,155.41468397]
[1752349539047,0.74,160.44,160.43,16.78468397]
[1752349539268,0.74,160.44,160.43,48.08468397]
[1752349542361,0.03,160.44,160.43,48.08468397]
[1752349546082,0.03,160.44,160.43,48.79468397]
[1752349547984,0.03,160.44,160.43,75.67468397]
[1752349548572,0.03,160.44,160.43,74.96468397]
[1752349548778,0.74,160.44,160.43,74.96468397]
[1752349553992,0.03,160.44,160.43,74.96468397]
[1752349555392,0.03,160.44,160.43,75.67468397]
[1752349556172,0.03,160.44,160.43,76.29800878]
[1752349556468,0.03,160.44,160.43,164.26800878]
[1752349556671,0.03,160.44,160.43,163.64468397]
[1752349557291,0.03,160.44,160.43,182.32468397]
[1752349563776,0.03,160.44,160.43,121.17496298]
[1752349564900,0.03,160.44,160.43,152.47496298]
[1752349565081,0.03,160.44,160.43,133.79496298]
[1752349565597,0.74,160.44,160.43,133.79496298]
[1752349565777,0.74,160.44,160.43,150.57964695]
[1752349566687,0.03,160.44,160.43,150.57964695]
[1752349568700,0.74,160.44,160.43,150.57964695]
[1752349570597,0.74,160.44,160.43,102.49496298]
[1752349570794,0.74,160.44,160.43,133.79496298]
[1752349574092,0.74,160.44,160.43,58.18]
[1752349575101,0.89903251,160.44,160.43,58.18]
[1752349580618,0.15903251,160.43,160.42,26.88]
[1752349581114,0.86903251,160.43,160.42,26.88]
[1752349581888,0.86903251,160.43,160.42,58.18]
[1752349582093,0.86903251,160.43,160.41,26.94]
[1752349582312,0.15903251,160.42,160.41,26.94]
[1752349582610,0.86903251,160.42,160.41,26.94]
[1752349583313,0.86903251,160.42,160.41,58.24]
[1752349589594,0.15903251,160.42,160.41,58.24]
[1752349590722,0.86903251,160.42,160.41,58.24]
[1752349591521,0.86903251,160.42,160.38,76.32496298]
[1752349591522,0.15903251,160.39,160.38,0.06]
[1752349591701,0.15903251,160.37,160.36,26.88]
[1752349592016,0.15903251,160.35,160.34,8.84553846]
[1752349592217,0.86903251,160.35,160.34,40.20553846]
[1752349596009,0.15903251,160.35,160.34,40.20553846]
[1752349597010,0.15903251,160.36,160.34,40.20553846]
[1752349597214,0.15903251,160.36,160.34,40.91553846]
[1752349597535,0.72,160.38,160.34,40.91553846]
[1752349597536,0.15903251,160.37,160.35,17.49468397]
[1752349597708,0.15903251,160.37,160.36,31.36]
[1752349600105,0.03,160.38,160.37,16.78468397]
[1752349600309,0.03,160.38,160.37,46.91355175]
[1752349600831,0.03,160.38,160.37,42.34238397]
[1752349601521,0.03,160.38,160.37,42.96594199]
[1752349602944,0.03,160.44,160.37,123.15207275]
[1752349603114,0.03,160.44,160.43,16.78468397]
[1752349603441,0.03,160.44,160.43,48.88800878]
[1752349603611,0.03,160.44,160.43,49.59800878]
[1752349604012,0.03,160.44,160.43,68.27800878]
[1752349606537,0.03,160.44,160.43,143.89297176]
[1752349606745,0.03,160.44,160.43,149.48174695]
[1752349607117,0.03,160.44,160.43,154.05291473]
[1752349608420,0.03,160.44,160.43,92.39964695]
[1752349608644,0.90903251,160.44,160.43,26.88]
[1752349609019,0.90903251,160.44,160.43,58.36]
[1752349614642,0.03,160.44,160.43,95.15800878]
[1752349617461,0.03,160.44,160.43,175.34413954]
[1752349617641,0.03,160.44,160.43,174.72081473]
[1752349619959,0.03,160.44,160.43,182.70211473]
[1752349621341,0.2,160.46,160.45,35.46468397]
[1752349621551,0.2,160.46,160.45,67.68793108]
[1752349621859,0.2,160.46,160.45,68.39793108]
[1752349624541,0.03,160.48,160.47,61.46468397]
[1752349624747,0.03,160.48,160.47,173.86398416]
[1752349625059,0.03,160.48,160.47,173.95081473]
[1752349625757,0.03,160.48,160.47,137.75964695]
[1752349625953,0.03,160.48,160.47,169.39964695]
[1752349628977,0.03,160.48,160.47,168.68964695]
[1752349629573,0.03,160.48,160.47,124.00964695]
[1752349630170,0.69,160.48,160.47,124.00964695]
[1752349631860,0.03,160.48,160.47,124.00964695]
[1752349634267,0.69,160.48,160.47,124.00964695]
[1752349637451,0.84903251,160.48,160.44,75.58496298]
[1752349637681,0.15903251,160.43,160.41,26.88]
[1752349637971,0.81903251,160.42,160.41,26.88]
[1752349638279,0.81903251,160.42,160.41,58.54]
[1752349638749,0.65336367,160.48,160.41,58.54]
[1752349638750,0.15903251,160.45,160.42,16.78468397]
[1752349638951,0.81903251,160.45,160.44,16.78468397]
[1752349640169,0.15903251,160.46,160.44,16.78468397]
[1752349640358,0.15903251,160.46,160.43,32.28332481]
[1752349640359,0.81903251,160.46,160.45,49.08793108]
[1752349641771,0.84903251,160.46,160.45,49.08793108]
[1752349641975,0.03,160.46,160.45,81.17309886]
[1752349642159,0.03,160.46,160.45,76.60193108]
[1752349643876,0.03,160.46,160.45,76.68193108]
[1752349645072,0.03,160.46,160.45,81.25309886]
[1752349645957,0.03,160.46,160.45,76.68193108]
[1752349647957,0.03,160.46,160.45,68.55793108]
[1752349650880,0.03,160.46,160.45,156.55793108]
[1752349652460,0.03,160.46,160.45,155.93468397]
[1752349654072,0.03,160.46,160.45,155.22468397]
[1752349659286,0.75,160.46,160.45,155.22468397]
[1752349659788,0.75,160.46,160.45,136.54468397]
[1752349660292,0.90903251,160.46,160.45,136.54468397]
[1752349661672,0.75,160.46,160.45,136.54468397]
[1752349661875,0.90903251,160.46,160.45,136.54468397]
[1752349664176,0.75,160.46,160.45,136.54468397]
[1752349664382,0.90903251,160.46,160.45,136.54468397]
[1752349666895,0.75,160.46,160.45,136.54468397]
[1752349667098,0.90903251,160.46,160.45,136.54468397]
[1752349667273,0.90903251,160.46,160.44,0.06]
[1752349667474,0.15903251,160.44,160.43,8.20647847]
[1752349667677,0.87903251,160.44,160.43,6.69647847]
[1752349667870,0.87903251,160.44,160.43,38.41647847]
[1752349671589,0.18903251,160.46,160.44,16.78468397]
[1752349671882,0.18903251,160.46,160.45,49.18793108]
[1752349672807,0.18903251,160.46,160.45,31.78]
[1752349672982,0.80903251,160.46,160.45,31.78]
[1752349673511,0.18903251,160.46,160.45,31.78]
[1752349674307,0.80903251,160.46,160.45,31.78]
[1752349674493,0.03,160.46,160.45,68.58793108]
[1752349674806,0.18903251,160.46,160.45,68.58793108]
[1752349675008,0.03,160.46,160.45,68.58793108]
[1752349677493,0.03,160.46,160.45,156.58793108]
[1752349677694,0.03,160.46,160.45,155.96468397]
[1752349682003,0.18903251,160.46,160.45,88.0]
[1752349682213,0.15903251,160.44,160.43,6.69647847]
[1752349682387,0.77903251,160.44,160.43,38.53647847]
[1752349687490,0.03,160.46,160.44,16.78468397]
[1752349687688,0.18903251,160.46,160.45,49.30793108]
[1752349688301,0.03,160.46,160.45,49.30793108]
[1752349688507,0.18903251,160.46,160.45,50.01793108]
[1752349691722,0.03,160.46,160.45,76.33163108]
[1752349693119,0.03,160.46,160.45,70.31013108]
[1752349693298,0.03,160.46,160.45,50.01793108]
[1752349693496,0.18903251,160.46,160.45,68.70793108]
[1752349694108,0.18903251,160.46,160.45,50.01793108]
[1752349694308,0.03,160.46,160.45,18.11793108]
[1752349694627,0.18903251,160.46,160.45,50.05793108]
[1752349695510,0.18903251,160.46,160.45,156.74793108]
[1752349695718,0.18903251,160.46,160.45,137.43468397]
[1752349696219,0.18903251,160.46,160.45,136.72468397]
[1752349696716,0.18903251,160.46,160.45,137.43468397]
[1752349696903,0.03,160.46,160.45,137.43468397]
[1752349697108,0.18903251,160.46,160.45,137.43468397]
[1752349702824,0.18903251,160.46,160.45,164.31468397]
[1752349706701,0.03,160.46,160.45,164.31468397]
[1752349709025,0.18903251,160.46,160.45,164.31468397]
[1752349710606,0.18903251,160.46,160.45,163.60468397]
[1752349710810,0.18903251,160.46,160.45,131.66468397]
[1752349711002,0.80903251,160.46,160.45,114.88]
[1752349711203,0.80903251,160.46,160.45,146.72]
[1752349711408,0.18903251,160.46,160.45,146.72]
[1752349716014,0.18903251,160.46,160.45,58.72]
[1752349726211,0.80903251,160.46,160.45,58.72]
[1752349726425,0.18903251,160.46,160.45,58.72]
[1752349736217,0.80903251,160.46,160.45,26.88]
[1752349736422,0.15903251,160.44,160.43,33.63647847]
[1752349736645,0.77903251,160.44,160.43,65.35647847]
[1752349750329,0.15903251,160.44,160.43,65.35647847]
[1752349751554,0.15903251,160.44,160.43,66.07647847]
[1752349755961,0.15903251,160.44,160.43,82.86116244]
[1752349756170,0.18903251,160.44,160.43,82.86116244]
[1752349763351,0.18903251,160.44,160.43,82.78116244]
[1752349766271,0.18903251,160.44,160.43,189.47116244]
[1752349766461,0.18903251,160.44,160.43,170.78116244]
[1752349773482,0.03,160.44,160.43,170.78116244]
[1752349773668,0.18903251,160.44,160.43,170.78116244]
[1752349780959,0.03,160.44,160.43,170.78116244]
[1752349784600,0.03,160.44,160.43,192.39113824]
[1752349792893,0.03,160.44,160.43,189.47116244]
[1752349797587,0.03,160.44,160.43,170.78116244]
[1752349797984,0.18903251,160.44,160.43,170.78116244]
[1752349798906,0.03,160.44,160.43,170.78116244]
[1752349799092,0.18903251,160.44,160.43,170.78116244]
[1752349800807,0.03,160.44,160.43,170.78116244]
[1752349800989,0.18903251,160.44,160.43,170.78116244]
[1752349801701,0.03,160.44,160.43,170.78116244]
[1752349802095,0.18903251,160.44,160.43,170.78116244]
[1752349802807,0.18903251,160.44,160.43,170.06116244]
[1752349803819,0.80903251,160.44,160.43,170.06116244]
[1752349805004,0.18903251,160.44,160.43,170.06116244]
[1752349807809,0.18903251,160.44,160.43,82.06116244]
[1752349807988,0.18903251,160.44,160.43,82.68448725]
[1752349808716,0.18903251,160.44,160.43,82.06116244]
[1752349812717,0.80903251,160.44,160.43,33.63647847]
[1752349813010,0.80903251,160.44,160.43,65.13647847]
[1752349818598,0.18903251,160.44,160.43,65.13647847]
[1752349819213,0.80903251,160.44,160.43,65.13647847]
[1752349820309,0.18903251,160.44,160.43,65.13647847]
[1752349823011,0.80903251,160.44,160.43,65.13647847]
[1752349826218,0.18903251,160.44,160.43,65.13647847]
[1752349826520,0.18903251,160.44,160.43,65.83647847]
[1752349828215,0.18903251,160.44,160.43,65.13647847]
[1752349829096,0.80903251,160.44,160.43,65.13647847]
[1752349831101,0.18903251,160.44,160.43,65.13647847]
[1752349831813,0.18903251,160.44,160.43,65.83647847]
[1752349832921,0.18903251,160.44,160.43,65.13647847]
[1752349836441,0.80903251,160.44,160.43,65.13647847]
[1752349837337,0.18903251,160.44,160.43,65.13647847]
[1752349840138,0.18903251,160.44,160.43,65.84647847]
[1752349841137,0.18903251,160.44,160.43,65.13647847]
[1752349857656,0.80903251,160.44,160.43,65.13647847]
[1752349857836,0.80903251,160.44,160.43,33.63647847]
[1752349858042,0.80903251,160.44,160.43,65.13647847]
[1752349859555,1.43239618,160.44,160.43,65.13647847]
[1752349861057,0.80903251,160.44,160.43,65.13647847]
[1752349861351,0.18903251,160.44,160.43,65.13647847]
[1752349861660,0.80903251,160.44,160.43,65.13647847]
[1752349862353,0.18903251,160.44,160.43,65.13647847]
[1752349864942,0.80903251,160.44,160.43,65.13647847]
[1752349867967,0.80903251,160.44,160.43,58.44]
[1752349878171,0.80903251,160.44,160.43,31.56]
[1752349885956,0.18903251,160.44,160.43,31.56]
[1752349886148,0.81239618,160.44,160.43,31.56]
[1752349887275,1.43239618,160.44,160.43,31.56]
[1752349894896,0.81239618,160.44,160.43,31.56]
[1752349895291,0.81239618,160.44,160.43,32.25]
[1752349896473,0.18903251,160.44,160.43,32.25]
[1752349950349,0.18903251,160.44,160.43,32.87332481]
[1752349954841,0.18903251,160.44,160.43,59.75332481]
[1752349955334,0.18903251,160.44,160.43,59.06332481]
[1752349955540,0.18903251,160.44,160.43,59.72332481]
[1752349957252,0.18903251,160.44,160.43,58.44]
[1752349963341,0.18903251,160.44,160.43,59.1]
[1752349966162,0.18903251,160.44,160.43,58.44]
[1752349966355,0.18903251,160.44,160.43,59.1]
[1752349972676,0.80903251,160.44,160.43,58.4]
[1752349978875,0.80903251,160.44,160.43,31.52]
[1752349979181,0.18903251,160.44,160.43,31.52]
[1752349980382,0.80903251,160.44,160.43,31.52]
[1752349982585,0.18903251,160.44,160.43,31.52]
[1752349985266,1.43239618,160.44,160.43,31.52]
[1752349994091,11.43239618,160.44,160.43,31.52]
[1752349994293,1.43239618,160.44,160.43,31.52]
[1752349994524,11.43239618,160.44,160.43,31.52]
[1752349996376,1.43239618,160.44,160.43,31.52]
[1752349996690,11.43239618,160.44,160.43,31.52]
[1752349997187,0.81239618,160.44,160.43,31.52]
[1752350000183,11.43239618,160.44,160.43,31.52]
[1752350001300,1.43239618,160.44,160.43,31.52]
[1752350001485,11.43239618,160.44,160.43,31.52]
[1752350002423,0.81239618,160.44,160.43,31.52]
[1752350002578,0.18903251,160.44,160.43,31.52]
[1752350006210,10.18903251,160.44,160.43,31.52]
[1752350006412,10.80903251,160.44,160.43,31.52]
[1752350009205,0.80903251,160.44,160.43,31.52]
[1752350009393,10.80903251,160.44,160.43,31.52]
[1752350013614,0.80903251,160.44,160.43,31.52]
[1752350013819,10.80903251,160.44,160.43,31.52]
[1752350017996,0.18903251,160.44,160.43,31.52]
[1752350025094,10.18903251,160.44,160.43,31.52]
[1752350025802,0.18903251,160.44,160.43,31.52]
[1752350026018,10.18903251,160.44,160.43,31.52]
[1752350030229,0.18903251,160.44,160.43,31.52]
[1752350030924,0.18903251,160.44,160.43,32.23]
[1752350032931,0.18903251,160.44,160.43,31.52]
[1752350033311,0.18903251,160.44,160.43,32.23]
[1752350090078,0.80903251,160.44,160.43,31.52]
[1752350090273,0.18903251,160.44,160.43,31.52]
[1752350092477,0.18903251,160.44,160.43,32.19]
[1752350093159,0.18903251,160.44,160.43,31.52]
[1752350098770,0.18903251,160.44,160.43,32.19]
[1752350103492,0.18903251,160.44,160.43,31.52]
[1752350104469,0.18903251,160.44,160.43,32.19]
[1752350122408,0.18903251,160.44,160.43,31.52]
[1752350122993,0.18903251,160.44,160.43,32.19]
[1752350123387,0.18903251,160.44,160.43,31.52]
[1752350130098,0.80903251,160.44,160.43,31.52]
[1752350137225,0.18903251,160.44,160.43,31.52]
[1752350138625,0.18903251,160.44,160.43,32.23]
[1752350146731,0.18903251,160.44,160.43,31.52]
[1752350147417,0.18903251,160.44,160.43,32.23]
[1752350148832,0.18903251,160.44,160.43,31.52]
[1752350149035,0.18903251,160.44,160.43,32.23]
[1752350150335,0.18903251,160.44,160.43,31.52]
[1752350153729,0.18903251,160.44,160.43,32.23]
[1752350155310,0.18903251,160.44,160.43,31.52]
[1752350157238,0.18903251,160.44,160.43,32.23]
[1752350168225,0.18903251,160.44,160.43,39.9489]
[1752350182657,0.18903251,160.44,160.43,31.52]
[1752350182855,0.18903251,160.44,160.43,0.06]
[1752350182856,0.80903251,160.44,160.43,0.06]
[1752350183077,0.80903251,160.44,160.43,31.42]
[1752350183727,27.59371648,160.44,160.43,31.42]
[1752350183938,31.78945809,160.44,160.43,31.42]
[1752350185439,21.78945809,160.44,160.43,31.42]
[1752350185647,22.41282176,160.44,160.43,31.42]
[1752350186335,32.41282176,160.44,160.43,31.42]
[1752350186737,22.41282176,160.44,160.43,31.42]
[1752350187063,5.62813779,160.44,160.43,31.42]
[1752350187232,0.80903251,160.44,160.43,31.42]
[1752350187427,5.00477412,160.44,160.43,31.42]
[1752350188150,0.80903251,160.44,160.43,31.42]
[1752350189058,0.18903251,160.44,160.43,31.42]
[1752350197547,0.18903251,160.44,160.43,32.1]
[1752350198340,0.18903251,160.44,160.43,31.42]
[1752350202447,0.80903251,160.44,160.43,31.42]
[1752350203355,17.59371648,160.44,160.43,31.42]
[1752350203554,27.59371648,160.44,160.43,31.42]
[1752350203752,31.7760461,160.44,160.43,31.42]
[1752350204557,32.39940977,160.44,160.43,31.42]
[1752350206353,22.39940977,160.44,160.43,31.42]
[1752350206774,32.39940977,160.44,160.43,31.42]
[1752350212876,31.77940977,160.44,160.43,31.42]
[1752350214679,21.77940977,160.44,160.43,31.42]
[1752350214982,32.39940977,160.44,160.43,31.42]
[1752350215571,22.39940977,160.44,160.43,31.42]
[1752350215772,32.39940977,160.44,160.43,31.42]
[1752350218282,31.77940977,160.44,160.43,31.42]
[1752350218488,4.9947258,160.44,160.43,32.1]
[1752350218669,4.37136213,160.44,160.43,32.1]
[1752350221281,0.18903251,160.44,160.43,32.1]
[1752350221491,4.36320401,160.44,160.43,32.1]
[1752350221966,0.18903251,160.44,160.43,32.1]
[1752350238817,0.18903251,160.44,160.43,40.1443]
[1752350242411,0.18903251,160.44,160.43,40.76762481]
[1752350253326,0.03,160.44,160.43,40.76762481]
[1752350254294,0.03,160.44,160.43,57.55230878]
[1752350254495,0.18903251,160.44,160.43,57.55230878]
[1752350257396,0.18903251,160.44,160.43,145.55230878]
[1752350257596,0.18903251,160.44,160.43,144.92898397]
[1752350258110,0.03,160.44,160.43,144.92898397]
[1752350273332,0.03,160.44,160.43,163.61898397]
[1752350286251,0.03,160.44,160.43,190.49898397]
[1752350286434,0.03,160.44,160.43,163.76468397]
[1752350305163,0.03,160.44,160.43,83.29378397]
[1752350305367,0.03,160.44,160.43,83.91710878]
[1752350307870,0.03,160.44,160.43,105.51708458]
[1752350310673,0.03,160.44,160.43,193.51708458]
[1752350310861,0.03,160.44,160.43,192.89375977]
[1752350336285,0.03,160.48,160.47,35.46468397]
[1752350336596,0.03,160.48,160.47,67.3878534]
[1752350336978,0.03,160.48,160.47,68.0578534]
[1752350338490,0.03,160.48,160.47,155.9978534]
[1752350338785,0.03,160.48,160.47,155.37468397]
[1752350341471,0.03,160.48,160.47,154.70468397]
[1752350341689,0.03,160.48,160.47,155.37468397]
[1752350344870,0.03,160.48,160.47,158.29465977]
[1752350349187,0.03,160.5,160.49,35.46468397]
[1752350349378,0.03,160.5,160.49,155.29777575]
[1752350349698,0.03,160.5,160.49,155.33468397]
[1752350350794,0.03,160.5,160.49,163.01158397]
[1752350350986,0.03,160.5,160.49,312.83155977]
[1752350361096,0.03,160.53,160.52,35.46468397]
[1752350361300,0.03,160.53,160.52,67.3876593]
[1752350362921,0.65,160.53,160.52,17.4076593]
[1752350363122,0.65,160.53,160.52,136.4676593]
[1752350363424,0.65,160.53,160.52,135.84468397]
[1752350363997,0.80903251,160.53,160.52,135.84468397]
[1752350364303,0.80903251,160.53,160.52,119.06]
[1752350365195,0.80903251,160.53,160.52,145.92]
[1752350367025,0.80903251,160.53,160.52,58.14]
[1752350367709,0.65,160.53,160.52,58.14]
[1752350367911,0.80903251,160.53,160.52,58.14]
[1752350368726,0.65,160.53,160.52,58.14]
[1752350369218,0.80903251,160.53,160.52,58.14]
[1752350370325,0.65,160.53,160.52,58.14]
[1752350370530,0.80903251,160.53,160.52,58.14]
[1752350372904,0.65,160.53,160.52,58.14]
[1752350373105,0.80903251,160.53,160.52,58.14]
[1752350373398,0.80903251,160.53,160.52,58.76297533]
[1752350373600,0.18903251,160.53,160.52,58.76297533]
[1752350373803,0.80903251,160.53,160.52,58.76297533]
[1752350376214,0.18903251,160.53,160.52,58.76297533]
[1752350377033,0.18903251,160.53,160.52,75.5476593]
[1752350378534,0.03,160.53,160.52,75.5476593]
[1752350378715,0.18903251,160.53,160.52,163.3276593]
[1752350378911,0.18903251,160.53,160.52,162.70468397]
[1752350380735,0.18903251,160.53,160.52,163.41468397]
[1752350381838,0.03,160.53,160.52,163.41468397]
[1752350382138,0.18903251,160.53,160.52,163.41468397]
[1752350382441,0.03,160.53,160.52,163.41468397]
[1752350382741,0.18903251,160.53,160.52,162.70468397]
[1752350386939,0.03,160.53,160.52,162.70468397]
[1752350387141,0.18903251,160.53,160.52,162.70468397]
[1752350390233,0.80903251,160.53,160.52,162.70468397]
[1752350390743,0.65,160.53,160.52,162.70468397]
[1752350390946,0.80903251,160.53,160.52,162.70468397]
[1752350391246,0.65,160.53,160.52,162.70468397]
[1752350391645,0.80903251,160.53,160.52,162.70468397]
[1752350392233,0.18903251,160.53,160.52,162.70468397]
[1752350392647,0.03,160.53,160.52,162.70468397]
[1752350392858,0.18903251,160.53,160.52,162.70468397]
[1752350394046,0.03,160.53,160.52,162.70468397]
[1752350394233,0.18903251,160.53,160.52,162.70468397]
[1752350394949,0.18903251,160.53,160.52,163.41468397]
[1752350396044,0.03,160.53,160.52,163.41468397]
[1752350399652,0.03,160.53,160.52,182.09468397]
[1752350402949,0.03,160.53,160.52,131.42468397]
[1752350403133,0.03,160.53,160.52,328.99468397]
[1752350403456,0.03,160.53,160.52,331.91465977]
[1752350404146,0.03,160.53,160.52,328.99468397]
[1752350404464,0.03,160.53,160.52,331.91465977]
[1752350405346,0.03,160.53,160.52,340.03435977]
[1752350406356,0.1,160.55,160.54,35.46468397]
[1752350406660,0.1,160.55,160.54,304.98755749]
[1752350406849,0.1,160.55,160.54,305.06465977]
[1752350407369,0.1,160.55,160.54,270.84468397]
[1752350407556,0.1,160.55,160.54,305.08465977]
[1752350408560,0.1,160.55,160.54,302.16468397]
[1752350408759,0.1,160.55,160.54,270.84468397]
[1752350408942,0.1,160.55,160.54,302.16468397]
[1752350411276,0.1,160.55,160.54,123.24468397]
[1752350411443,0.1,160.55,160.54,154.56468397]
[1752350411643,0.1,160.55,160.54,155.26468397]
[1752350413043,0.1,160.55,160.54,154.56468397]
[1752350413563,0.1,160.55,160.54,155.26468397]
[1752350416782,0.1,160.55,160.54,135.88468397]
[1752350418249,0.72,160.55,160.54,135.88468397]
[1752350418549,0.25903251,160.55,160.54,136.58468397]
[1752350419068,0.25903251,160.55,160.54,135.88468397]
[1752350419581,0.87903251,160.55,160.54,104.56468397]
[1752350419881,0.87903251,160.55,160.54,136.50758169]
[1752350420055,0.87903251,160.55,160.54,135.88468397]
[1752350420560,0.87903251,160.55,160.54,119.1]
[1752350421784,0.87903251,160.55,160.54,31.32]
[1752350424977,0.25903251,160.55,160.54,48.80468397]
[1752350425160,0.1,160.55,160.54,48.10468397]
[1752350425370,0.87903251,160.55,160.54,48.10468397]
[1752350426298,0.72,160.55,160.54,135.88468397]
[1752350426464,0.25903251,160.55,160.54,135.88468397]
[1752350427870,0.1,160.55,160.54,135.88468397]